bitfinex-derivatives/quotes_BTCF0:USTF0_20250309
["timestamp","ask_amount","ask_price","bid_price","bid_amount"]
[1741529691911,0.6164717,83160.0,83159.0,0.3760343]
[1741529692096,0.2242317,83160.0,83159.0,0.4963075]
[1741529692293,0.1202717,83160.0,83159.0,0.3760343]
[1741529692493,0.2241917,83160.0,83159.0,0.47836158]
[1741529692701,0.2241917,83160.0,83159.0,0.35808838]
[1741529693103,0.8272917,83160.0,83159.0,0.35808838]
[1741529693497,0.7233717,83160.0,83159.0,0.35808838]
[1741529693697,0.8272917,83160.0,83159.0,0.35808838]
[1741529693898,0.70702,83160.0,83159.0,0.35808838]
[1741529694106,0.5480337,83170.0,83167.0,0.1202616]
[1741529694107,0.12044403,83168.0,83167.0,0.1202616]
[1741529694399,0.10414033,83168.0,83167.0,0.1202616]
[1741529694597,0.12044043,83168.0,83167.0,0.1202616]
[1741529694997,0.00018033,83168.0,83167.0,0.13820785]
[1741529695302,0.00018033,83168.0,83167.0,0.39450785]
[1741529695505,0.00018033,83168.0,83167.0,0.27424625]
[1741529695506,0.1202601,83168.0,83167.0,0.27424625]
[1741529695700,0.6120601,83168.0,83167.0,0.3765616]
[1741529695905,0.1202601,83168.0,83167.0,0.3765616]
[1741529696104,0.1202601,83168.0,83167.0,0.39441189]
[1741529696303,0.1202601,83168.0,83167.0,0.27415029]
[1741529696600,0.1202601,83168.0,83167.0,0.2563]
[1741529696601,0.4823801,83168.0,83167.0,0.2563]
[1741529696802,0.1202717,83160.0,83159.0,0.00018033]
[1741529696999,0.5849917,83160.0,83159.0,0.00018033]
[1741529697201,0.4810717,83160.0,83159.0,0.12045353]
[1741529697506,0.1202717,83160.0,83159.0,0.12045353]
[1741529697805,0.2403,83166.0,83159.0,0.06031633]
[1741529697806,0.0601316,83166.0,83159.0,0.06031633]
[1741529698008,0.224185,83165.0,83164.0,0.1202659]
[1741529698210,0.10392,83165.0,83164.0,0.1202659]
[1741529698409,0.28431,83171.0,83170.0,0.1202529]
[1741529698997,0.18039,83171.0,83170.0,0.1202529]
[1741529699495,0.0601299,83171.0,83170.0,0.1202529]
[1741529700097,0.0601299,83171.0,83168.0,0.0601295]
[1741529700307,0.1202587,83169.0,83168.0,0.0601295]
[1741529700507,0.2584,83170.0,83169.0,0.1202587]
[1741529700705,0.2843113,83173.0,83172.0,0.1803758]
[1741529700905,0.060135,83162.0,83157.0,0.3608]
[1741529701099,0.1202717,83160.0,83149.0,0.0601436]
[1741529701299,0.1202717,83160.0,83157.0,0.1202752]
[1741529701505,0.1202717,83160.0,83148.0,0.3608]
[1741529701706,0.4806917,83160.0,83154.0,0.1202795]
[1741529701903,0.4806917,83160.0,83148.0,0.481088]
[1741529702101,0.4806917,83160.0,83148.0,0.3608]
[1741529702306,0.7375717,83160.0,83159.0,3e-08]
[1741529702712,0.75000787,83160.0,83159.0,3e-08]
[1741529702909,0.85388787,83160.0,83159.0,3e-08]
[1741529703103,0.84135602,83160.0,83159.0,3e-08]
[1741529703410,0.83935602,83160.0,83159.0,3e-08]
[1741529703910,0.73547602,83160.0,83159.0,3e-08]
[1741529704105,0.83935602,83160.0,83159.0,3e-08]
[1741529706209,0.00018033,83176.0,83166.0,0.0601309]
[1741529706411,0.06013,83169.0,83168.0,0.1173501]
[1741529706723,0.2537,83172.0,83171.0,0.1202558]
[1741529706724,0.10388,83172.0,83171.0,0.1202558]
[1741529707108,0.00018033,83176.0,83175.0,0.12025]
[1741529707297,0.10397006,83190.0,83175.0,0.12025]
[1741529707499,0.10397006,83190.0,83182.0,0.1202399]
[1741529708210,0.10397006,83190.0,83189.0,0.1202298]
[1741529708408,0.31094635,83203.0,83192.0,0.1202255]
[1741529708714,0.17408737,83198.0,83192.0,0.1202255]
[1741529709209,0.0601094,83197.0,83192.0,0.1202255]
[1741529709511,0.25962624,83193.0,83192.0,0.1202255]
[1741529710214,0.13940224,83193.0,83192.0,0.1202255]
[1741529710511,0.20706635,83203.0,83202.0,0.120211]
[1741529710812,0.20706635,83203.0,83202.0,0.224051]
[1741529711007,0.30527595,83203.0,83202.0,0.224051]
[1741529711198,0.30527595,83203.0,83202.0,0.10384]
[1741529711404,0.1202153,83199.0,83198.0,0.3608]
[1741529711599,0.54586635,83203.0,83202.0,0.120211]
[1741529711804,0.18506635,83203.0,83202.0,0.224051]
[1741529712010,0.00018033,83211.0,83210.0,0.1201994]
[1741529712306,0.00018033,83211.0,83210.0,0.3126794]
[1741529712511,0.12037833,83211.0,83210.0,0.3126794]
[1741529712900,0.00018033,83211.0,83210.0,0.3126794]
[1741529713109,0.00018033,83211.0,83210.0,0.6734794]
[1741529713110,3e-08,83211.0,83210.0,0.6734794]
[1741529713415,0.12019803,83211.0,83210.0,0.3126794]
[1741529713906,0.12019803,83211.0,83210.0,0.19248]
[1741529714302,3e-08,83211.0,83210.0,0.19248]
[1741529714502,3e-08,83211.0,83210.0,0.3126794]
[1741529715797,0.4298337,83240.0,83229.0,0.1802502]
[1741529716002,0.1201752,83230.0,83229.0,0.1802502]
[1741529716207,0.1802853,83219.0,83218.0,0.1201832]
[1741529716711,0.1201806,83224.0,83223.0,0.1201792]
[1741529716897,0.3608,83225.0,83224.0,0.1201792]
[1741529717102,0.00018022,83232.0,83231.0,0.1201691]
[1741529717505,0.1201691,83231.0,83230.0,0.19244]
[1741529718418,0.00018022,83232.0,83230.0,0.3126106]
[1741529718616,0.12034792,83232.0,83231.0,0.6101691]
[1741529719612,0.00018022,83232.0,83231.0,0.6101691]
[1741529720418,0.12034792,83232.0,83231.0,0.6101691]
[1741529720612,0.00018022,83232.0,83231.0,0.6101691]
[1741529721615,0.00180348,83245.0,83231.0,0.8508]
[1741529721819,0.00180348,83245.0,83244.0,0.1201504]
[1741529722715,0.12195238,83245.0,83244.0,0.6104504]
[1741529723419,0.12195238,83245.0,83244.0,0.4903]
[1741529723625,0.48275238,83245.0,83244.0,0.4903]
[1741529725222,0.48275238,83245.0,83244.0,0.6104504]
[1741529725407,0.00180348,83245.0,83244.0,0.6104504]
[1741529725812,0.1872337,83270.0,83252.0,0.1201388]
[1741529726121,0.12031762,83253.0,83250.0,0.0600708]
[1741529726421,0.4201082,83252.0,83251.0,0.6276402]
[1741529726613,0.7818482,83252.0,83251.0,0.6276402]
[1741529727008,0.7818482,83252.0,83251.0,0.5075]
[1741529727214,0.7818482,83252.0,83251.0,0.2619]
[1741529727613,0.7818482,83252.0,83249.0,0.3125417]
[1741529727614,0.1201417,83250.0,83249.0,0.1924]
[1741529728018,0.1201417,83250.0,83249.0,0.3125431]
[1741529729226,0.1201417,83250.0,83249.0,0.1924]
[1741529730121,0.6627694,83252.0,83249.0,0.1924]
[1741529730122,0.7829111,83252.0,83251.0,0.1201402]
[1741529730318,0.7820711,83252.0,83251.0,0.1201402]
[1741529730513,0.5239711,83252.0,83251.0,0.1201402]
[1741529730813,0.00022,83252.0,83251.0,0.6262402]
[1741529731220,0.1203588,83252.0,83251.0,0.6262402]
[1741529731621,0.1203588,83252.0,83251.0,0.5061]
[1741529731819,0.6355588,83252.0,83251.0,0.2399]
[1741529732321,0.6355588,83252.0,83249.0,0.1924]
[1741529732322,0.1201417,83250.0,83249.0,0.1924]
[1741529732514,0.31659,83252.0,83249.0,0.1924]
[1741529732825,0.06029,83252.0,83251.0,0.1201402]
[1741529733324,0.00022,83252.0,83251.0,0.3854402]
[1741529734325,0.1203588,83252.0,83251.0,0.3854402]
[1741529734526,0.3616588,83252.0,83251.0,0.3854402]
[1741529734727,0.3616588,83252.0,83251.0,0.2653]
[1741529734919,0.6165588,83252.0,83251.0,0.6371402]
[1741529735424,0.00022,83252.0,83251.0,0.6371402]
[1741529735621,0.1203588,83252.0,83251.0,0.6371402]
[1741529735823,0.0983588,83252.0,83251.0,0.6371402]
[1741529736422,0.00018022,83253.0,83251.0,0.517]
[1741529736622,0.3750388,83252.0,83251.0,0.6371388]
[1741529736822,0.6308388,83252.0,83251.0,0.6371388]
[1741529738229,0.1201388,83252.0,83251.0,0.6371388]
[1741529738616,0.3760388,83252.0,83251.0,0.6371388]
[1741529740324,0.12031902,83253.0,83252.0,0.1201388]
[1741529740726,0.36701902,83253.0,83252.0,0.1201388]
[1741529740927,0.62291902,83253.0,83252.0,0.6282388]
[1741529741129,0.98371902,83253.0,83252.0,0.6282388]
[1741529742732,0.62291902,83253.0,83252.0,0.6282388]
[1741529743126,0.37621902,83253.0,83252.0,0.6282388]
[1741529743525,0.36121902,83253.0,83252.0,0.6282388]
[1741529744330,0.10531902,83253.0,83252.0,0.6282388]
[1741529744829,0.00039,83254.0,83253.0,0.1201374]
[1741529745329,0.00039,83254.0,83253.0,0.6259374]
[1741529745527,0.1201417,83250.0,83249.0,0.1924]
[1741529745727,0.4809417,83250.0,83249.0,0.1924]
[1741529745931,0.4809417,83250.0,83249.0,0.3125431]
[1741529746135,0.3608,83250.0,83249.0,0.3125431]
[1741529746436,0.1201417,83250.0,83249.0,0.8183412]
[1741529746729,0.1201417,83250.0,83249.0,0.6982]
[1741529746930,0.1201417,83250.0,83249.0,0.1924]
[1741529747336,0.1201417,83250.0,83249.0,0.3125431]
[1741529747337,0.2235417,83250.0,83249.0,0.3125431]
[1741529747642,0.00039,83254.0,83253.0,0.1201374]
[1741529747833,0.00039,83254.0,83253.0,0.4809374]
[1741529748139,0.3608,83269.0,83253.0,0.4809374]
[1741529748140,0.427417,83268.0,83260.0,0.1201273]
[1741529748332,0.427417,83268.0,83260.0,0.5843273]
[1741529748730,0.12030602,83261.0,83260.0,0.7330273]
[1741529750833,0.12030602,83261.0,83260.0,0.6129]
[1741529751039,0.72418022,83261.0,83239.0,0.0600786]
[1741529751238,0.1201605,83237.0,83236.0,0.36098022]
[1741529751438,0.1201605,83237.0,83236.0,0.00918753]
[1741529751638,0.1201605,83237.0,83236.0,0.00018022]
[1741529752238,0.87946,83242.0,83236.0,0.06026052]
[1741529752443,0.3608,83243.0,83242.0,0.1201532]
[1741529752740,0.4809532,83243.0,83242.0,0.1201532]
[1741529752931,0.0600734,83247.0,83242.0,0.5191]
[1741529753139,0.3836482,83246.0,83245.0,0.1201489]
[1741529754244,0.120145,83248.0,83247.0,0.1201446]
[1741529754542,0.1201475,83246.0,83245.0,0.0600742]
[1741529755131,0.6490475,83246.0,83245.0,0.0600742]
[1741529755337,0.3853475,83246.0,83245.0,0.0600742]
[1741529755742,0.1201561,83240.0,83239.0,0.35808838]
[1741529755947,0.5842761,83240.0,83239.0,0.35808838]
[1741529756442,0.5842761,83240.0,83236.0,0.00018022]
[1741529756640,0.4809605,83237.0,83236.0,0.00018022]
[1741529756836,0.4589605,83237.0,83236.0,0.00018022]
[1741529757146,0.4589605,83237.0,83236.0,2e-08]
[1741529757731,0.5622805,83237.0,83236.0,2e-08]
[1741529758536,0.5622805,83237.0,83230.0,0.18422101]
[1741529758843,0.4809691,83231.0,83230.0,0.18422101]
[1741529759041,0.4809691,83231.0,83230.0,0.11904981]
[1741529760442,0.4809691,83231.0,83230.0,0.23922041]
[1741529760639,0.4809691,83231.0,83230.0,0.11904981]
[1741529760832,0.4809691,83231.0,83230.0,0.23922041]
[1741529760833,0.3608,83231.0,83230.0,0.23922041]
[1741529761039,0.3608,83231.0,83230.0,0.2234906]
[1741529761244,0.173817,83243.0,83238.0,0.120159]
[1741529761438,0.173817,83243.0,83238.0,0.776599]
[1741529762144,0.0600777,83241.0,83238.0,0.19236]
[1741529762350,0.0600777,83241.0,83230.0,1.3146096]
[1741529762351,0.1201691,83231.0,83230.0,0.00064]
[1741529762548,0.2631,83240.0,83228.0,0.247]
[1741529762737,0.10328,83248.0,83238.0,0.120159]
[1741529762942,0.0600767,83242.0,83238.0,0.120159]
[1741529763146,0.1201605,83238.0,83237.0,0.120159]
[1741529763349,0.0600811,83236.0,83229.0,0.36144]
[1741529763650,0.1802644,83229.0,83228.0,0.0600839]
[1741529763850,0.0600839,83232.0,83231.0,0.1201648]
[1741529764152,0.3608,83252.0,83231.0,0.1201648]
[1741529764153,2e-08,83239.0,83238.0,0.120159]
[1741529764446,2e-08,83239.0,83238.0,0.584239]
[1741529764749,0.15181702,83243.0,83238.0,0.46408]
[1741529764939,0.10328,83265.0,83238.0,0.46408]
[1741529764940,0.0600588,83267.0,83248.0,0.1201446]
[1741529765140,0.0600707,83251.0,83248.0,0.4157846]
[1741529765341,0.32733744,83249.0,83248.0,0.4157846]
[1741529765648,0.1201431,83249.0,83248.0,0.19236]
[1741529766352,0.6107431,83249.0,83248.0,0.19236]
[1741529766647,0.6107431,83249.0,83246.0,0.2168]
[1741529766846,0.1201547,83241.0,83240.0,0.00018022]
[1741529767044,0.5841947,83241.0,83240.0,0.00018022]
[1741529767837,0.5841947,83241.0,83240.0,2e-08]
[1741529768042,0.7341947,83241.0,83240.0,2e-08]
[1741529768244,0.61404,83241.0,83219.0,0.3608]
[1741529768446,0.120185,83220.0,83219.0,0.3608]
[1741529768647,0.223425,83220.0,83219.0,0.4809864]
[1741529768948,0.0600884,83226.0,83219.0,0.4809864]
[1741529768949,0.10324,83227.0,83226.0,0.1201763]
[1741529769152,0.2233749,83227.0,83226.0,0.2403507]
[1741529769448,0.10324,83233.0,83229.0,0.060086]
[1741529769649,0.0600843,83233.0,83232.0,0.1201677]
[1741529769949,0.1201691,83231.0,83230.0,0.5012]
[1741529770147,0.1201864,83220.0,83219.0,0.1201791]
[1741529770452,0.1201864,83220.0,83219.0,0.3636791]
[1741529770648,0.1032,83228.0,83221.0,0.0600915]
[1741529770951,0.1802631,83227.0,83226.0,0.1201749]
[1741529771352,0.4306631,83227.0,83226.0,0.1201749]
[1741529771845,0.1032,83228.0,83225.0,0.2454]
[1741529771846,0.62388,83234.0,83225.0,0.2454]
[1741529772040,0.2504,83233.0,83232.0,0.1201677]
[1741529772443,0.46591,83234.0,83232.0,0.1201677]
[1741529772640,0.35671,83234.0,83233.0,0.1201662]
[1741529773039,0.4768748,83234.0,83233.0,0.1201662]
[1741529773343,0.1220748,83234.0,83233.0,0.1201662]
[1741529773544,0.00191,83234.0,83233.0,0.1201662]
[1741529773952,0.1220748,83234.0,83233.0,0.1201662]
[1741529774348,0.7487748,83234.0,83233.0,0.1201662]
[1741529775445,0.4828748,83234.0,83233.0,0.1201662]
[1741529775752,0.1201363,83254.0,83247.0,0.120146]
[1741529775948,0.5566648,83259.0,83247.0,0.480946]
[1741529776247,0.0600754,83244.0,83233.0,0.36584]
[1741529776455,0.480959,83238.0,83233.0,0.3652]
[1741529776648,0.584119,83238.0,83233.0,0.3652]
[1741529776854,0.1201706,83230.0,83229.0,0.00018022]
[1741529777154,0.5841306,83230.0,83229.0,0.00018022]
[1741529777747,0.1201908,83216.0,83215.0,0.2524544]
[1741529778053,0.1201908,83216.0,83215.0,0.19236]
[1741529778450,0.0601032,83206.0,83205.0,0.1202057]
[1741529778650,0.1202032,83208.0,83207.0,0.1202009]
[1741529778955,0.1205132,83208.0,83207.0,0.1202009]
[1741529779454,0.6384132,83208.0,83207.0,0.1202009]
[1741529780256,0.114211,83202.0,83201.0,0.3726768]
[1741529780847,0.114211,83202.0,83201.0,0.19236]
[1741529781654,0.372611,83202.0,83201.0,0.19236]
[1741529782648,0.372611,83202.0,83198.0,0.00180275]
[1741529782649,0.629411,83202.0,83198.0,0.00180275]
[1741529782851,0.1202168,83198.0,83197.0,2e-08]
[1741529783450,0.3144068,83201.0,83197.0,2e-08]
[1741529783451,0.2543,83201.0,83197.0,2e-08]
[1741529783652,0.1202168,83198.0,83197.0,2e-08]
[1741529785152,0.10330022,83214.0,83207.0,0.1202038]
[1741529785356,0.10330022,83214.0,83207.0,0.4810038]
[1741529785357,0.1201992,83211.0,83207.0,0.4810038]
[1741529785556,0.2548,83213.0,83207.0,0.4810038]
[1741529785756,0.1205123,83208.0,83207.0,0.4810038]
[1741529785951,0.00031,83208.0,83207.0,0.4810038]
[1741529786162,0.00031,83208.0,83199.0,0.0601076]
[1741529786163,0.1202153,83199.0,83198.0,0.2449]
[1741529786354,0.1202153,83199.0,83198.0,0.3709154]
[1741529787655,0.10308,83206.0,83202.0,0.0601042]
[1741529787852,0.00031,83208.0,83207.0,0.1202038]
[1741529788157,0.12637352,83209.0,83207.0,0.4156838]
[1741529788356,0.12637352,83209.0,83208.0,0.1202023]
[1741529788550,0.12637352,83209.0,83208.0,0.6348023]
[1741529788746,0.12637352,83209.0,83208.0,0.64729191]
[1741529788950,0.00018022,83214.0,83208.0,0.6348023]
[1741529789151,0.00018022,83214.0,83213.0,0.4809951]
[1741529789658,0.10308,83235.0,83233.0,0.1201662]
[1741529789963,0.10308,83235.0,83220.0,0.18718004]
[1741529789964,0.3608,83236.0,83214.0,0.876]
[1741529790149,0.10308,83238.0,83232.0,0.1201677]
[1741529790458,0.32735914,83234.0,83233.0,0.9961662]
[1741529790759,0.10308,83257.0,83233.0,1.56108]
[1741529790959,0.34248425,83260.0,83248.0,0.0600723]
[1741529791163,0.34248425,83260.0,83249.0,0.509]
[1741529791463,0.0008,83254.0,83249.0,0.509]
[1741529792457,0.0008,83254.0,83249.0,0.659]
[1741529792856,0.1201417,83250.0,83249.0,0.509]
[1741529793065,0.1201401,83252.0,83249.0,0.6291431]
[1741529793953,0.00018022,83260.0,83256.0,0.0600665]
[1741529794149,0.00018022,83260.0,83257.0,0.82626]
[1741529794357,0.00018022,83260.0,83258.0,0.103]
[1741529794358,0.1201287,83259.0,83258.0,0.103]
[1741529794659,0.1201301,83258.0,83257.0,0.72326]
[1741529794861,0.1201301,83258.0,83257.0,0.19236]
[1741529795054,0.1201301,83258.0,83243.0,0.00018022]
[1741529795055,0.120146,83247.0,83243.0,2e-08]
[1741529795364,0.8417504,83244.0,83243.0,2e-08]
[1741529797149,1.1036504,83244.0,83243.0,2e-08]
[1741529798872,1.1036504,83244.0,83231.0,4e-08]
[1741529799061,1.1036504,83244.0,83218.0,0.28776078]
[1741529799062,0.1201778,83225.0,83220.0,0.2451]
[1741529799372,0.1201864,83219.0,83218.0,0.28776078]
[1741529799659,0.5839464,83219.0,83218.0,8e-08]
[1741529800259,0.5839464,83219.0,83212.0,0.25248016]
[1741529800458,0.4809951,83213.0,83212.0,0.19461716]
[1741529800651,0.4809951,83213.0,83212.0,0.05824426]
[1741529800857,0.120198,83211.0,83210.0,2e-08]
[1741529801052,0.1202124,83201.0,83200.0,0.0128]
[1741529801366,0.5839324,83201.0,83200.0,0.0128]
[1741529802571,0.46372,83201.0,83192.0,0.00018022]
[1741529802773,0.481024,83193.0,83192.0,0.00018022]
[1741529802980,0.583944,83193.0,83192.0,0.00018022]
[1741529805971,0.583944,83193.0,83192.0,0.12040572]
[1741529806461,0.583944,83193.0,83192.0,0.00018022]
[1741529807060,0.481024,83193.0,83192.0,0.00018022]
[1741529808567,0.462024,83193.0,83192.0,0.00018022]
[1741529812277,0.715024,83193.0,83192.0,0.00018022]
[1741529812579,0.1202457,83178.0,83177.0,0.19244]
[1741529812774,0.8418457,83178.0,83177.0,0.3126871]
[1741529813176,0.7216,83178.0,83177.0,0.3126871]
[1741529813573,0.7216,83178.0,83177.0,0.4155671]
[1741529813969,0.7216,83178.0,83177.0,0.9062671]
[1741529815266,0.8418457,83178.0,83177.0,0.9062671]
[1741529815472,0.7216,83178.0,83177.0,0.9062671]
[1741529816176,0.8418457,83178.0,83177.0,0.8033871]
[1741529816372,0.82484569,83178.0,83177.0,0.8033871]
[1741529817070,0.70459999,83178.0,83177.0,0.8033871]
[1741529817470,0.82484569,83178.0,83177.0,0.8033871]
[1741529818392,0.70459999,83178.0,83177.0,0.8033871]
[1741529818976,0.82484569,83178.0,83177.0,0.8033871]
[1741529819283,0.82484569,83178.0,83177.0,0.68314]
[1741529819477,0.82484569,83178.0,83177.0,0.19244]
[1741529819677,1.07234569,83178.0,83177.0,0.19244]
[1741529819877,1.07234569,83178.0,83177.0,0.3126871]
[1741529820075,0.70459999,83178.0,83177.0,0.3126871]
[1741529820471,0.82484569,83178.0,83177.0,0.3126871]
[1741529820782,0.82484569,83178.0,83177.0,0.5702871]
[1741529821175,0.70459999,83178.0,83177.0,0.5702871]
[1741529821685,0.82484569,83178.0,83177.0,0.5702871]
[1741529822083,0.82484569,83178.0,83177.0,0.45004]
[1741529822279,1.33894569,83178.0,83177.0,0.19244]
[1741529822872,0.0601253,83175.0,83169.0,0.00018034]
[1741529823077,0.1202674,83163.0,83162.0,0.19248]
[1741529823380,0.1202847,83151.0,83150.0,0.12950812]
[1741529823577,0.3608,83151.0,83150.0,0.5061681]
[1741529823883,0.4810847,83151.0,83150.0,0.5061681]
[1741529824076,0.4790847,83151.0,83150.0,0.5061681]
[1741529824272,0.4790847,83151.0,83150.0,0.2405681]
[1741529824480,0.0601444,83149.0,83146.0,0.19248]
[1741529824776,0.4810905,83147.0,83146.0,0.19248]
[1741529825180,0.7224905,83147.0,83146.0,0.19248]
[1741529825378,0.9712905,83147.0,83146.0,0.312772]
[1741529825578,0.9712905,83147.0,83146.0,0.19248]
[1741529826982,0.705,83147.0,83146.0,0.312772]
[1741529827285,0.3608,83147.0,83146.0,0.312772]
[1741529827885,0.3608,83162.0,83146.0,0.72593091]
[1741529828085,0.3608,83162.0,83158.0,0.1202746]
[1741529828388,0.12045354,83159.0,83158.0,0.2230346]
[1741529828592,0.1202746,83158.0,83157.0,0.6415757]
[1741529828782,0.3818746,83158.0,83157.0,0.5213]
[1741529829084,0.6263746,83158.0,83157.0,0.6415761]
[1741529830185,0.00018034,83159.0,83158.0,0.1202746]
[1741529830377,0.36076004,83162.0,83158.0,0.2230346]
[1741529830575,0.42618074,83197.0,83158.0,0.2230346]
[1741529830576,0.88974074,83197.0,83178.0,0.1202457]
[1741529830781,0.1803649,83181.0,83178.0,0.3554021]
[1741529830981,0.1803649,83181.0,83180.0,0.1202399]
[1741529831291,0.0601196,83183.0,83180.0,0.1202399]
[1741529831292,0.1202399,83182.0,83180.0,0.1202399]
[1741529831474,0.1202399,83182.0,83178.0,0.29528]
[1741529831475,0.1202399,83182.0,83181.0,0.5038]
[1741529831788,0.0982399,83182.0,83181.0,0.242]
[1741529831983,0.1202442,83179.0,83178.0,0.19252]
[1741529832189,0.1202515,83174.0,83173.0,4e-08]
[1741529832376,0.5837715,83174.0,83173.0,4e-08]
[1741529832684,0.6013083,83167.0,83137.0,0.10272]
[1741529832883,0.6013083,83167.0,83136.0,0.19248]
[1741529832884,0.120305,83137.0,83136.0,0.19248]
[1741529833096,0.120305,83137.0,83136.0,0.3127864]
[1741529833583,0.120305,83137.0,83136.0,0.69458]
[1741529833783,0.120305,83137.0,83136.0,0.8148864]
[1741529834485,0.00085,83139.0,83136.0,0.69458]
[1741529834688,0.00085,83139.0,83138.0,0.1203035]
[1741529834892,0.00018034,83145.0,83138.0,0.3608]
[1741529835096,0.00018034,83145.0,83144.0,0.1202949]
[1741529835281,0.2533,83164.0,83144.0,0.61352]
[1741529835485,0.3608,83181.0,83174.0,0.1202515]
[1741529835682,0.2245156,83175.0,83174.0,0.1202515]
[1741529836192,0.1042656,83175.0,83174.0,0.1202515]
[1741529836389,0.1042656,83175.0,83174.0,0.10272]
[1741529836591,0.2245156,83175.0,83174.0,0.2229715]
[1741529836788,0.2245156,83175.0,83174.0,0.7300715]
[1741529837185,0.1202601,83168.0,83167.0,0.19252]
[1741529837389,0.4810601,83168.0,83167.0,0.5740816]
[1741529837585,0.1202601,83168.0,83167.0,0.8198816]
[1741529837787,0.1202601,83168.0,83167.0,0.19252]
[1741529839097,0.1202601,83168.0,83167.0,0.67892]
[1741529839300,0.1202601,83168.0,83167.0,0.19252]
[1741529839594,0.36428,83169.0,83147.0,0.00064]
[1741529839791,0.1202963,83143.0,83142.0,0.43312]
[1741529839989,0.4810963,83143.0,83142.0,0.43312]
[1741529840590,0.4810963,83143.0,83142.0,0.19252]
[1741529841190,0.3608,83143.0,83142.0,0.19252]
[1741529841390,0.1804436,83145.0,83144.0,0.1202891]
[1741529841803,0.1202963,83143.0,83142.0,0.19252]
[1741529843092,0.00018034,83151.0,83150.0,0.1202862]
[1741529843605,0.3608,83157.0,83156.0,0.1202775]
[1741529843791,0.4810761,83157.0,83156.0,0.1202775]
[1741529843991,0.0601369,83159.0,83155.0,0.5008]
[1741529844191,0.1202775,83156.0,83155.0,0.6812127]
[1741529844502,0.1202775,83156.0,83155.0,0.5609381]
[1741529844693,0.1202775,83156.0,83155.0,0.5008]
[1741529845093,0.1202949,83144.0,83143.0,0.10264]
[1741529845493,0.0601473,83145.0,83138.0,0.10264]
[1741529845693,0.1202963,83143.0,83134.0,0.00900829]
[1741529846003,0.1202963,83143.0,83135.0,0.1203078]
[1741529846195,0.1202963,83143.0,83134.0,0.00900829]
[1741529846397,0.13968525,83143.0,83135.0,0.5074]
[1741529846896,0.1203079,83135.0,83134.0,0.00018034]
[1741529847098,0.02018895,83143.0,83134.0,0.00018034]
[1741529847288,0.01956929,83143.0,83135.0,0.0601539]
[1741529847487,0.1203079,83135.0,83134.0,0.00018034]
[1741529847892,0.2445,83136.0,83134.0,0.12048964]
[1741529848094,0.0008,83142.0,83141.0,0.1202992]
[1741529848302,0.0601411,83153.0,83141.0,0.1202992]
[1741529848303,0.4946,83161.0,83141.0,0.5005]
[1741529848488,0.2615,83155.0,83154.0,0.1202804]
[1741529848696,0.3817789,83155.0,83154.0,0.1202804]
[1741529849207,0.2615,83155.0,83154.0,0.1202804]
[1741529849495,0.1804349,83150.0,83149.0,0.1202824]
[1741529849697,0.1202905,83147.0,83146.0,0.19256]
[1741529849893,0.1202905,83147.0,83146.0,0.312852]
[1741529850400,0.4810876,83150.0,83149.0,0.1202876]
[1741529851301,0.3608,83150.0,83149.0,0.1202876]
[1741529851500,0.1202862,83150.0,83149.0,0.1804308]
[1741529851996,0.1222862,83150.0,83149.0,0.1804308]
[1741529852699,0.1222862,83150.0,83149.0,0.0601432]
[1741529853000,0.1202876,83149.0,83148.0,0.1202876]
[1741529853198,0.1202876,83149.0,83126.0,0.06934231]
[1741529853199,0.0601524,83138.0,83134.0,0.00018034]
[1741529853398,0.1203079,83135.0,83134.0,0.18063904]
[1741529853604,0.1203079,83135.0,83134.0,0.30094544]
[1741529855094,0.0983079,83135.0,83134.0,0.06033404]
[1741529855295,0.4591079,83135.0,83134.0,0.06033404]
[1741529855490,0.4591079,83135.0,83134.0,0.00018034]
[1741529855696,0.7139079,83135.0,83134.0,0.00318034]
[1741529857910,0.72605949,83135.0,83134.0,4e-08]
[1741529858300,0.82861949,83135.0,83134.0,4e-08]
[1741529858808,0.82861949,83135.0,83117.0,0.19256]
[1741529858809,0.0601615,83125.0,83117.0,0.19256]
[1741529858995,0.4811325,83118.0,83117.0,0.20154171]
[1741529859196,0.4811325,83118.0,83115.0,0.0018046]
[1741529859197,0.7216,83118.0,83115.0,0.0018046]
[1741529859404,0.1203383,83114.0,83113.0,0.00018045]
[1741529860108,0.12182147,83114.0,83113.0,0.00018045]
[1741529860593,0.1203571,83101.0,83100.0,0.1]
[1741529860797,0.5836771,83101.0,83100.0,0.1]
[1741529860998,0.58532211,83101.0,83100.0,0.1]
[1741529862003,0.1203687,83093.0,83092.0,0.26891584]
[1741529862205,0.83242,83093.0,83086.0,0.42642751]
[1741529862406,0.83242,83093.0,83062.0,0.58656351]
[1741529862407,0.1194093,83065.0,83064.0,0.18250862]
[1741529862610,0.3608,83066.0,83060.0,0.1204157]
[1741529862809,0.32162,83077.0,83065.0,0.3608]
[1741529863108,0.00180725,83082.0,83065.0,0.3608]
[1741529863109,0.00180725,83082.0,83081.0,0.1203861]
[1741529863296,0.00180725,83082.0,83081.0,0.48146618]
[1741529863611,0.3608,83105.0,83104.0,0.1203528]
[1741529863612,0.34153058,83105.0,83104.0,0.1203528]
[1741529863906,0.1876707,83120.0,83104.0,0.1203528]
[1741529863907,0.17338074,83125.0,83124.0,0.1203238]
[1741529864101,0.0601481,83144.0,83124.0,0.1203238]
[1741529864102,0.0601449,83148.0,83128.0,0.0601586]
[1741529864404,0.3608,83159.0,83128.0,0.0601586]
[1741529864405,0.6235,83167.0,83134.0,0.3608]
[1741529864707,0.6235,83167.0,83125.0,0.1876707]
[1741529864708,0.3608,83167.0,83151.0,0.3608]
[1741529864905,0.00018047,83159.0,83154.0,0.06014]
[1741529865206,0.00018047,83159.0,83151.0,0.3608]
[1741529865405,0.00018047,83159.0,83156.0,0.1202746]
[1741529865607,0.00018047,83159.0,83158.0,0.1202746]
[1741529865999,0.24136067,83168.0,83167.0,0.1202616]
[1741529866312,0.24136067,83168.0,83167.0,0.4810616]
[1741529866603,0.24136067,83168.0,83167.0,0.7430616]
[1741529867207,0.00018036,83176.0,83173.0,0.0601261]
[1741529867415,0.3608,83188.0,83175.0,0.3608]
[1741529867707,0.24230332,83195.0,83175.0,0.3608]
[1741529867708,0.3608,83192.0,83191.0,0.11858273]
[1741529867897,0.24230332,83195.0,83191.0,0.22106273]
[1741529868103,0.4608,83200.0,83192.0,0.0601124]
[1741529868400,0.29698797,83231.0,83209.0,0.0601001]
[1741529868605,0.3608,83218.0,83200.0,0.33031403]
[1741529868796,0.29698797,83231.0,83193.0,0.19256]
[1741529868797,0.3608,83203.0,83193.0,0.19256]
[1741529868997,0.120224,83193.0,83192.0,0.00180276]